bitfinex/quotes_SOLUSD_20250529
["timestamp","ask_amount","ask_price","bid_price","bid_amount"]
[1748533530183,37.0823072,169.87,169.78,89.7]
[1748533530184,15.82690287,169.87,169.8,21.25540433]
[1748533530358,21.25540433,169.85,169.8,21.25540433]
[1748533530560,27.14326808,169.85,169.8,21.25540433]
[1748533530864,5.88786375,169.85,169.81,21.25540433]
[1748533532066,5.88786375,169.85,169.77,89.7]
[1748533532067,21.25540433,169.83,169.77,89.7]
[1748533532383,21.25540433,169.83,169.78,21.25540433]
[1748533532384,58.33540433,169.83,169.78,21.25540433]
[1748533532592,5.88858791,169.82,169.76,10.35702031]
[1748533532795,5.88858791,169.82,169.78,21.25540433]
[1748533534980,27.14399224,169.82,169.77,21.25540433]
[1748533535156,27.14399224,169.82,169.76,10.35702031]
[1748533535477,27.14399224,169.82,169.77,21.25540433]
[1748533536264,27.14399224,169.82,169.76,10.35702031]
[1748533536459,27.14399224,169.82,169.77,21.25540433]
[1748533537582,5.88858791,169.82,169.78,21.25540433]
[1748533537959,27.14399224,169.82,169.76,10.35702031]
[1748533538174,5.88858791,169.82,169.76,10.35702031]
[1748533538374,27.14399224,169.82,169.76,10.35702031]
[1748533538686,21.25540433,169.8,169.76,10.35702031]
[1748533539786,21.25540433,169.8,169.75,21.25540433]
[1748533539987,21.25540433,169.79,169.73,89.7]
[1748533540283,27.14688612,169.74,169.65,7.49469863]
[1748533540469,64.22688612,169.74,169.69,21.25540433]
[1748533540672,26.0,169.77,169.73,21.25540433]
[1748533540869,37.08,169.79,169.76,21.25540433]
[1748533541074,37.08,169.79,169.75,21.25540433]
[1748533541273,58.33540433,169.79,169.73,21.25540433]
[1748533541479,21.25540433,169.78,169.73,21.25540433]
[1748533541678,21.25540433,169.77,169.71,22.85570433]
[1748533541886,21.25540433,169.77,169.71,21.25540433]
[1748533542085,44.64964886,169.77,169.67,11.5313]
[1748533542289,5.89136326,169.74,169.7,21.25540433]
[1748533542471,27.14676759,169.74,169.67,1.5713]
[1748533542674,42.97136326,169.74,169.67,22.82670433]
[1748533542883,21.25540433,169.72,169.67,1.5713]
[1748533543071,21.25540433,169.71,169.63,9.96]
[1748533543683,18.64964886,169.73,169.63,9.96]
[1748533543886,21.25540433,169.72,169.67,21.25540433]
[1748533544082,21.25540433,169.72,169.63,9.96]
[1748533544292,5.89240469,169.71,169.67,21.25540433]
[1748533544794,27.14748669,169.72,169.67,21.25540433]
[1748533545168,5.89208236,169.72,169.67,21.25540433]
[1748533545374,21.25540433,169.71,169.63,9.96]
[1748533545900,21.25540433,169.71,169.66,21.25540433]
[1748533546405,21.25540433,169.71,169.62,91.2713]
[1748533546568,21.25540433,169.71,169.66,21.25540433]
[1748533546772,27.14748669,169.72,169.67,21.25540433]
[1748533546999,27.14748669,169.72,169.62,97.16677379]
[1748533547299,21.25540433,169.71,169.66,21.25540433]
[1748533547683,5.89275191,169.7,169.62,91.2713]
[1748533547998,5.89275191,169.7,169.66,21.25540433]
[1748533548195,5.89275191,169.7,169.62,1.5713]
[1748533548391,58.35540433,169.69,169.62,1.5713]
[1748533548576,37.1,169.69,169.65,21.25540433]
[1748533548777,47.25540433,169.74,169.68,21.25540433]
[1748533548778,26.0,169.74,169.68,21.25540433]
[1748533548979,37.1,169.72,169.69,21.25540433]
[1748533549390,37.1,169.72,169.68,21.25540433]
[1748533550575,37.1,169.72,169.69,21.25540433]
[1748533550784,37.1,169.72,169.68,21.25540433]
[1748533551102,42.9921287,169.72,169.68,21.25540433]
[1748533551402,21.25540433,169.71,169.62,7.46673703]
[1748533551699,21.25540433,169.7,169.65,21.25540433]
[1748533551887,21.25540433,169.7,169.62,7.46673703]
[1748533552205,21.25540433,169.69,169.62,1.5713]
[1748533552385,31.89267338,169.71,169.62,1.5713]
[1748533552386,21.25540433,169.66,169.62,1.5713]
[1748533552579,37.12,169.67,169.62,1.5713]
[1748533552798,21.25540433,169.66,169.62,22.82670433]
[1748533553299,21.25540433,169.65,169.62,1.5713]
[1748533553500,21.25540433,169.66,169.62,1.5713]
[1748533553695,37.12,169.67,169.62,22.82670433]
[1748533554202,37.12,169.67,169.64,21.25540433]
[1748533554404,37.12,169.67,169.62,1.5713]
[1748533554578,43.01389373,169.67,169.62,22.82670433]
[1748533554784,64.26929806,169.67,169.62,22.82670433]
[1748533555105,64.26920788,169.67,169.62,22.82670433]
[1748533555700,37.12,169.67,169.63,21.25540433]
[1748533555929,37.12,169.67,169.62,1.5713]
[1748533556203,64.26921124,169.67,169.62,1.5713]
[1748533556510,64.26921124,169.67,169.62,22.82670433]
[1748533556705,58.37540433,169.67,169.63,21.25540433]
[1748533556893,64.26922056,169.67,169.62,1.5713]
[1748533557084,64.26922056,169.67,169.63,21.25540433]
[1748533557590,43.01381623,169.67,169.63,21.25540433]
[1748533557895,0.5,169.66,169.63,21.25540433]
[1748533559704,0.5,169.66,169.6,14.2294461]
[1748533559921,0.5,169.66,169.63,21.25540433]
[1748533560089,21.75540433,169.66,169.6,8.33333333]
[1748533560284,0.5,169.66,169.6,8.33333333]
[1748533560490,0.5,169.66,169.63,21.25540433]
[1748533561499,0.5,169.66,169.64,21.25540433]
[1748533561695,0.5,169.66,169.6,14.22954664]
[1748533562090,0.5,169.66,169.6,8.33333333]
[1748533562391,0.5,169.66,169.63,21.25540433]
[1748533563521,0.5,169.66,169.6,14.22950649]
[1748533563691,0.5,169.66,169.63,21.25540433]
[1748533563891,0.5,169.66,169.6,14.22950649]
[1748533564093,0.5,169.66,169.63,21.25540433]
[1748533565814,0.5,169.66,169.65,21.25540433]
[1748533567612,106.63801322,169.78,169.65,21.25540433]
[1748533567613,9.96,169.77,169.65,121.59448865]
[1748533567801,9.96,169.77,169.74,21.25540433]
[1748533567996,73.28,169.77,169.74,21.25540433]
[1748533568498,47.28,169.77,169.74,21.25540433]
[1748533568894,79.1703903,169.77,169.68,5.89332295]
[1748533569101,79.1703903,169.77,169.73,21.25540433]
[1748533569298,100.42579463,169.77,169.73,21.25540433]
[1748533569624,37.32,169.76,169.73,21.25540433]
[1748533570713,37.32,169.76,169.68,95.593401]
[1748533570714,37.32,169.76,169.74,21.25540433]
[1748533570966,43.21077378,169.76,169.74,21.25540433]
[1748533571096,43.21077378,169.76,169.73,21.25540433]
[1748533572523,44.08878906,169.79,169.75,21.25540433]
[1748533572731,36.01128906,169.79,169.77,21.25540433]
[1748533573037,37.4,169.8,169.78,21.25540433]
[1748533573601,29.56770814,169.82,169.78,21.25540433]
[1748533573819,43.26893469,169.81,169.78,21.25540433]
[1748533574028,5.88893469,169.81,169.78,21.25540433]
[1748533574226,43.26893469,169.81,169.78,21.25540433]
[1748533574529,29.56770814,169.82,169.8,21.25540433]
[1748533574731,72.83631313,169.82,169.8,21.25540433]
[1748533575103,72.83631313,169.82,169.79,21.25540433]
[1748533575303,37.36,169.81,169.79,21.25540433]
[1748533575904,43.24904818,169.81,169.79,21.25540433]
[1748533576917,43.24904818,169.81,169.74,110.95540433]
[1748533577117,43.24904818,169.81,169.79,21.25540433]
[1748533577704,35.45637579,169.82,169.8,21.25540433]
[1748533577909,35.45637579,169.82,169.81,21.25540433]
[1748533578125,19.60770814,169.82,169.81,21.25540433]
[1748533578836,16.5624,169.87,169.81,21.25540433]
[1748533578837,5.88720122,169.86,169.81,21.25540433]
[1748533579041,5.88720122,169.86,169.85,21.25540433]
[1748533580651,9.94,169.87,169.85,21.25540433]
[1748533580938,9.94,169.87,169.79,5.88933565]
[1748533580939,9.94,169.87,169.86,21.25540433]
[1748533581139,43.22657907,169.88,169.86,21.25540433]
[1748533581433,5.88657907,169.88,169.87,21.25540433]
[1748533581823,5.88546877,169.91,169.87,21.25540433]
[1748533582134,43.20546877,169.91,169.89,21.25540433]
[1748533582360,5.88546877,169.91,169.89,21.25540433]
[1748533583244,43.18546877,169.91,169.89,21.25540433]
[1748533583451,5.88546877,169.91,169.89,21.25540433]
[1748533583853,5.88546877,169.91,169.9,21.25540433]
[1748533584058,5.88546877,169.91,169.89,21.25540433]
[1748533585143,5.88546877,169.91,169.9,21.25540433]
[1748533586154,5.88512241,169.92,169.89,21.25540433]
[1748533586572,21.25540433,169.91,169.83,89.7]
[1748533586777,20.59792843,169.92,169.86,21.25540433]
[1748533587064,21.25540433,169.91,169.86,21.25540433]
[1748533587431,21.25540433,169.91,169.87,21.25540433]
[1748533587647,20.59792843,169.92,169.87,21.25540433]
[1748533587862,41.85333276,169.92,169.87,21.25540433]
[1748533588058,20.59792843,169.92,169.87,21.25540433]
[1748533588262,41.85333276,169.92,169.87,21.25540433]
[1748533588470,20.59792843,169.92,169.87,21.25540433]
[1748533588642,20.59792843,169.92,169.88,21.25540433]
[1748533589178,41.85333276,169.92,169.83,21.25540433]
[1748533589342,21.25540433,169.91,169.86,21.25540433]
[1748533589770,20.59792843,169.92,169.87,21.25540433]
[1748533589966,41.85333276,169.92,169.87,21.25540433]
[1748533590346,21.25540433,169.91,169.83,21.25540433]
[1748533590552,21.25540433,169.91,169.86,21.25540433]
[1748533590862,20.60035314,169.9,169.86,21.25540433]
[1748533592251,20.60035314,169.9,169.81,96.3222]
[1748533592580,20.60035314,169.9,169.86,21.25540433]
[1748533592766,20.60035314,169.9,169.87,21.25540433]
[1748533593080,5.88546877,169.91,169.88,21.25540433]
[1748533593944,20.59914071,169.91,169.88,21.25540433]
[1748533595089,5.88546877,169.91,169.89,21.25540433]
[1748533596176,5.88546877,169.91,169.88,21.25540433]
[1748533596683,21.25540433,169.89,169.81,96.3222]
[1748533596851,21.25540433,169.89,169.81,6.6222]
[1748533597187,5.88685465,169.87,169.83,21.25540433]
[1748533597359,43.14685465,169.87,169.83,21.25540433]
[1748533597680,43.14685465,169.87,169.84,21.25540433]
[1748533597977,43.14685465,169.87,169.8,1.5159]
[1748533598274,43.14685465,169.87,169.84,21.25540433]
[1748533598486,43.14685465,169.87,169.83,21.25540433]
[1748533598650,43.14685465,169.87,169.77,143.28305856]
[1748533598651,21.25540433,169.86,169.77,6.0145]
[1748533598850,21.25540433,169.82,169.77,21.25540433]
[1748533599083,5.88893469,169.81,169.73,6.4809]
[1748533599263,5.88893469,169.81,169.78,21.25540433]
[1748533599581,5.88893469,169.81,169.8,21.25540433]
[1748533599787,43.1686496,169.82,169.8,21.25540433]
[1748533599950,43.1686496,169.82,169.81,21.25540433]
[1748533600150,43.1686496,169.82,169.8,21.25540433]
[1748533600457,43.1686496,169.82,169.78,21.25540433]
[1748533601375,43.16860174,169.82,169.81,21.25540433]
[1748533601582,43.16860174,169.82,169.75,18.64964886]
[1748533601782,21.25540433,169.8,169.75,89.7]
[1748533601983,21.25540433,169.78,169.72,1.5641]
[1748533602173,21.25540433,169.76,169.71,21.25540433]
[1748533602380,37.34,169.77,169.69,6.3734]
[1748533602566,37.34,169.77,169.75,21.25540433]
[1748533602770,37.34,169.77,169.69,25.02304886]
[1748533602771,37.34,169.77,169.74,21.25540433]
[1748533602972,37.34,169.77,169.73,21.25540433]
[1748533603170,37.34,169.77,169.75,21.25540433]
[1748533603171,43.2303401,169.77,169.75,21.25540433]
[1748533603583,10.08,169.79,169.76,21.25540433]
[1748533603879,63.4,169.8,169.69,30.91613976]
[1748533604080,63.4,169.8,169.76,21.25540433]
[1748533604255,69.32935942,169.8,169.77,21.25540433]
[1748533604456,43.32935942,169.8,169.77,21.25540433]
[1748533604650,43.32935942,169.8,169.76,21.25540433]
[1748533605086,43.32935942,169.8,169.69,30.91613976]
[1748533605286,43.32935942,169.8,169.76,21.25540433]
[1748533605469,31.88873068,169.82,169.78,21.25540433]
[1748533605661,5.88824641,169.83,169.81,21.25540433]
[1748533605869,64.56365074,169.83,169.75,1.5152]
[1748533606073,64.56365074,169.83,169.78,21.25540433]
[1748533606698,43.30824641,169.83,169.78,21.25540433]
[1748533606874,64.56365074,169.83,169.78,21.25540433]
[1748533607074,64.56365074,169.83,169.75,1.5152]
[1748533607306,64.56365074,169.83,169.78,21.25540433]
[1748533607788,21.25540433,169.8,169.72,26.0]
[1748533607996,21.25540433,169.79,169.74,21.25540433]
[1748533608171,37.5,169.78,169.74,21.25540433]
[1748533608965,43.39015002,169.78,169.74,21.25540433]
[1748533609394,43.39015002,169.78,169.75,21.25540433]
[1748533610388,5.88954497,169.8,169.77,21.25540433]
[1748533610597,73.56,169.83,169.79,21.25540433]
[1748533611193,79.44826338,169.83,169.79,21.25540433]
[1748533612395,100.70366771,169.83,169.78,21.25540433]
[1748533612797,21.25540433,169.82,169.77,21.25540433]
[1748533612999,79.44826338,169.83,169.78,21.25540433]
[1748533613182,5.88720122,169.86,169.82,21.25540433]
[1748533613373,43.40720122,169.86,169.83,21.25540433]
[1748533613571,43.40720122,169.86,169.77,91.3308]
[1748533613791,64.66260555,169.86,169.81,21.25540433]
[1748533613973,43.40720122,169.86,169.81,21.25540433]
[1748533614178,43.40720122,169.86,169.8,21.25540433]
[1748533614179,58.12520428,169.86,169.8,21.25540433]
[1748533614385,21.25540433,169.85,169.8,21.25540433]
[1748533614578,21.25540433,169.85,169.81,21.25540433]
[1748533614777,58.12520428,169.86,169.81,21.25540433]
[1748533615088,79.38060861,169.86,169.81,21.25540433]
[1748533616173,21.25540433,169.85,169.81,21.25540433]
[1748533616677,43.40720122,169.86,169.82,21.25540433]
[1748533616888,5.88720122,169.86,169.82,21.25540433]
[1748533617075,37.76,169.85,169.82,21.25540433]
[1748533617278,5.88720122,169.86,169.82,21.25540433]
[1748533617497,37.76,169.85,169.82,21.25540433]
[1748533617669,5.88789448,169.84,169.82,21.25540433]
[1748533618278,5.88789448,169.84,169.81,21.25540433]
[1748533618479,5.88789448,169.84,169.82,21.25540433]
[1748533618883,37.72,169.84,169.82,21.25540433]
[1748533619084,5.88759113,169.85,169.83,21.25540433]
[1748533619404,37.72,169.84,169.83,21.25540433]
[1748533619791,5.88720122,169.86,169.83,21.25540433]
[1748533619988,37.7,169.85,169.83,21.25540433]
[1748533620614,37.7,169.85,169.77,97.22107358]
[1748533620812,37.7,169.85,169.83,21.25540433]
[1748533621019,43.58785864,169.85,169.83,21.25540433]
[1748533621592,5.88694937,169.87,169.84,21.25540433]
[1748533621912,5.88694937,169.87,169.85,21.25540433]
[1748533621913,43.58694937,169.87,169.85,21.25540433]
[1748533622617,5.88694937,169.87,169.85,21.25540433]
[1748533622814,43.56694937,169.87,169.84,21.25540433]
[1748533623817,37.68,169.87,169.85,21.25540433]
[1748533624515,37.64,169.87,169.86,21.25540433]
[1748533624715,168.55540433,169.92,169.86,21.25540433]
[1748533624716,5.88520793,169.92,169.86,21.25540433]
[1748533624891,37.66,169.91,169.89,21.25540433]
[1748533625093,5.88520793,169.92,169.89,21.25540433]
[1748533625315,5.88520793,169.92,169.9,21.25540433]
[1748533625520,37.66,169.91,169.89,21.25540433]
[1748533626504,16.08488269,169.93,169.9,21.25540433]
[1748533626697,16.08488269,169.93,169.91,21.25540433]
[1748533626698,37.64,169.92,169.91,21.25540433]
[1748533627113,37.64,169.92,169.9,21.25540433]
[1748533627419,37.64,169.92,169.84,1.6113]
[1748533627420,5.88546877,169.91,169.84,1.6113]
[1748533627619,27.1408731,169.91,169.84,1.6113]
[1748533627826,27.1408731,169.91,169.86,21.25540433]
[1748533628034,21.25540433,169.89,169.8,91.2401]
[1748533628336,46.59914071,169.91,169.82,21.25540433]
[1748533628337,21.25540433,169.87,169.82,21.25540433]
[1748533628497,84.93540433,169.88,169.83,21.25540433]
[1748533629004,63.68,169.88,169.84,21.25540433]
[1748533629202,5.88546877,169.91,169.87,21.25540433]
[1748533629397,5.88524531,169.92,169.89,21.25540433]
[1748533629695,5.88524531,169.92,169.88,21.25540433]
[1748533629696,37.72,169.91,169.88,21.25540433]
[1748533629901,58.97540433,169.91,169.86,21.25540433]
[1748533630809,5.88581518,169.9,169.86,21.25540433]
[1748533631408,43.60553929,169.91,169.87,21.25540433]
[1748533631612,43.60553929,169.91,169.89,21.25540433]
[1748533631805,43.60553929,169.91,169.88,21.25540433]
[1748533632405,43.60553929,169.91,169.87,21.25540433]
[1748533633015,43.60553929,169.91,169.83,21.25540433]
[1748533633016,64.86094362,169.91,169.86,21.25540433]
[1748533633739,43.60553929,169.91,169.86,21.25540433]
[1748533633906,64.86094362,169.91,169.81,89.7]
[1748533634106,64.86094362,169.91,169.86,21.25540433]
[1748533634318,43.60553929,169.91,169.87,21.25540433]
[1748533636632,5.88553929,169.91,169.88,21.25540433]
[1748533636804,37.68,169.9,169.88,21.25540433]
[1748533637006,37.68,169.9,169.87,21.25540433]
[1748533637205,43.5659739,169.9,169.87,21.25540433]
[1748533637943,43.5659739,169.9,169.81,89.7]
[1748533637944,37.66,169.89,169.86,21.25540433]
[1748533638100,37.66,169.89,169.81,89.7]
[1748533638428,58.91540433,169.89,169.84,21.25540433]
[1748533638926,21.25540433,169.87,169.82,21.25540433]
[1748533639144,37.66,169.89,169.82,21.25540433]
[1748533639307,5.88720122,169.86,169.82,21.25540433]
[1748533639506,37.66,169.85,169.82,21.25540433]
[1748533641009,37.66,169.85,169.83,21.25540433]
[1748533641744,43.54770268,169.85,169.83,21.25540433]
[1748533641923,43.54770268,169.85,169.82,21.25540433]
[1748533643614,37.66,169.85,169.83,21.25540433]
[1748533643838,37.64,169.85,169.83,21.25540433]
[1748533646099,37.64,169.85,169.79,16.08948805]
[1748533646100,37.64,169.85,169.84,21.25540433]
[1748533646358,21.25540433,169.89,169.84,21.25540433]
[1748533646359,5.8866076,169.88,169.84,21.25540433]
[1748533646525,37.62,169.86,169.84,21.25540433]
[1748533647720,43.50748821,169.86,169.79,10.2]
[1748533647920,43.50748821,169.86,169.83,21.25540433]
[1748533649029,43.50748821,169.86,169.79,10.2]
[1748533649225,43.50748821,169.86,169.82,21.25540433]
[1748533649424,21.25540433,169.85,169.8,21.25540433]
[1748533649626,43.50748821,169.86,169.8,21.25540433]
[1748533649835,43.50748821,169.86,169.81,21.25540433]
[1748533650038,43.50748821,169.86,169.78,12.21041254]
[1748533650039,43.50748821,169.86,169.83,21.25540433]
[1748533651936,37.6,169.85,169.83,21.25540433]
[1748533653334,37.6,169.85,169.84,21.25540433]
[1748533655254,5.8867771,169.88,169.84,21.25540433]
[1748533655462,37.58,169.86,169.84,21.25540433]
[1748533656060,37.58,169.86,169.79,24.53905317]
[1748533656352,37.58,169.86,169.83,21.25540433]
[1748533656556,58.83540433,169.86,169.81,21.25540433]
[1748533656756,37.58,169.86,169.81,21.25540433]
[1748533656942,43.46727019,169.86,169.78,12.21035198]
[1748533657255,43.46727019,169.86,169.82,21.25540433]
[1748533658264,43.46727019,169.86,169.81,21.25540433]
[1748533658454,37.58,169.86,169.85,21.25540433]
[1748533658653,37.62,169.88,169.85,21.25540433]
[1748533659944,10.28,169.89,169.86,21.25540433]
[1748533660160,47.88,169.89,169.86,21.25540433]
[1748533660654,53.76625406,169.89,169.86,21.25540433]
[1748533661668,16.16625406,169.89,169.86,21.25540433]
[1748533661852,53.74625406,169.89,169.86,21.25540433]
[1748533662354,53.72625406,169.89,169.8,10.28]
[1748533662555,21.25540433,169.88,169.83,21.25540433]
[1748533663064,21.25540433,169.88,169.79,24.53924498]
[1748533663065,53.72625406,169.89,169.85,21.25540433]
[1748533663771,74.98165839,169.89,169.85,21.25540433]
[1748533663969,74.98165839,169.89,169.84,21.25540433]
[1748533664875,53.72625406,169.89,169.85,21.25540433]
[1748533665175,74.98165839,169.89,169.85,21.25540433]
[1748533665553,74.98165839,169.89,169.8,5.88926086]
[1748533665873,53.72625406,169.89,169.84,21.25540433]
[1748533666081,74.98165839,169.89,169.84,21.25540433]
[1748533666279,21.25540433,169.88,169.79,18.64964886]
[1748533666469,53.72625406,169.89,169.78,32.3205]
[1748533666470,21.25540433,169.87,169.78,32.3205]
[1748533666674,94.44165814,169.89,169.81,21.25540433]
[1748533666973,21.25540433,169.87,169.81,21.25540433]
[1748533667750,21.25540433,169.87,169.82,21.25540433]
[1748533667994,94.44165814,169.89,169.83,21.25540433]
[1748533668280,100.98165839,169.89,169.84,21.25540433]
[1748533668460,42.16625406,169.89,169.85,21.25540433]
[1748533668663,37.5,169.88,169.85,21.25540433]
[1748533669774,37.48,169.87,169.85,21.25540433]
[1748533673183,37.42,169.88,169.85,21.25540433]
[1748533673988,37.42,169.88,169.86,21.25540433]
[1748533674772,16.16624417,169.89,169.87,21.25540433]
[1748533674773,10.28,169.89,169.87,21.25540433]
[1748533675668,5.88558018,169.91,169.87,21.25540433]
[1748533675870,37.44,169.91,169.88,21.25540433]
[1748533676062,47.25540433,169.93,169.9,21.25540433]
[1748533676063,5.88484008,169.93,169.9,21.25540433]
[1748533676370,37.44,169.93,169.91,21.25540433]
[1748533676980,16.02453821,169.94,169.9,21.25540433]
[1748533677277,37.44,169.93,169.9,21.25540433]
[1748533677801,10.14,169.94,169.91,21.25540433]
[1748533678093,35.54841474,169.96,169.92,21.25540433]
[1748533678094,67.43224759,169.96,169.92,21.25540433]
[1748533678258,37.46,169.95,169.93,21.25540433]
[1748533678467,27.13923718,169.96,169.89,1.5824]
[1748533678758,37.5,169.95,169.91,21.25540433]
[1748533679170,27.13923718,169.96,169.91,21.25540433]
[1748533679360,5.88442979,169.94,169.91,21.25540433]
[1748533679561,5.88442979,169.94,169.89,1.5824]
[1748533679768,5.88442979,169.94,169.91,21.25540433]
[1748533684088,43.32442979,169.94,169.91,21.25540433]
[1748533684469,64.57983412,169.94,169.89,22.83780433]
[1748533685190,64.57983412,169.94,169.89,21.25540433]
[1748533685499,21.25540433,169.9,169.84,22.88460433]
[1748533685661,21.25540433,169.89,169.84,22.88460433]
[1748533685981,64.6018534,169.89,169.84,21.25540433]
[1748533686305,43.34644907,169.89,169.81,10.14]
[1748533686489,21.25540433,169.87,169.82,21.25540433]
[1748533686865,21.25540433,169.87,169.8,8.1784]
[1748533686866,21.25540433,169.86,169.8,8.1784]
[1748533687172,21.25540433,169.87,169.82,21.25540433]
[1748533687375,58.06185315,169.89,169.82,21.25540433]
[1748533687685,21.25540433,169.87,169.82,21.25540433]
[1748533687889,5.88720122,169.86,169.82,21.25540433]
[1748533688964,5.88720122,169.86,169.8,8.1784]
[1748533689279,27.14260555,169.86,169.8,1.6292]
[1748533689587,21.25540433,169.83,169.78,21.25540433]
[1748533689800,21.25540433,169.82,169.77,21.25540433]
[1748533689972,37.48,169.83,169.8,21.25540433]
[1748533690494,58.73540433,169.83,169.79,21.25540433]
[1748533690696,58.73540433,169.83,169.76,17.8885]
[1748533690872,58.73540433,169.83,169.78,21.25540433]
[1748533691076,64.62397942,169.83,169.78,21.25540433]
[1748533692584,64.62397942,169.83,169.76,17.8885]
[1748533692766,43.36857509,169.83,169.76,17.8885]
[1748533692969,64.62397942,169.83,169.78,21.25540433]
[1748533694390,21.25540433,169.82,169.77,21.25540433]
[1748533695394,5.88889708,169.82,169.79,21.25540433]
[1748533696278,5.88889708,169.82,169.76,11.7722]
[1748533696473,27.14430141,169.82,169.78,21.25540433]
[1748533696674,5.88889708,169.82,169.78,21.25540433]
[1748533699397,5.88889708,169.82,169.79,21.25540433]
[1748533700886,43.36825557,169.83,169.79,21.25540433]
[1748533701120,43.36825557,169.83,169.8,21.25540433]
[1748533701290,43.36825557,169.83,169.79,21.25540433]
[1748533702578,64.6236599,169.83,169.79,21.25540433]
[1748533702793,43.36825557,169.83,169.79,21.25540433]
[1748533703009,43.36825557,169.83,169.8,21.25540433]
[1748533703382,43.36825557,169.83,169.79,21.25540433]
[1748533704104,43.36825557,169.83,169.76,1.6322]
[1748533704403,43.36825557,169.83,169.8,21.25540433]
[1748533706808,5.88752806,169.86,169.82,21.25540433]
[1748533706993,16.02698008,169.87,169.85,21.25540433]
[1748533707196,37.38,169.86,169.85,21.25540433]
[1748533707405,37.38,169.86,169.84,21.25540433]
[1748533707599,48.78910433,169.89,169.85,21.25540433]
[1748533707600,5.88654397,169.88,169.85,21.25540433]
[1748533707804,43.28654397,169.88,169.86,21.25540433]
[1748533708422,43.28654397,169.88,169.85,21.25540433]
[1748533709114,37.4,169.87,169.85,21.25540433]
[1748533709312,37.4,169.87,169.86,21.25540433]
[1748533709609,36.62341992,169.87,169.85,21.25540433]
[1748533710617,36.62341992,169.87,169.82,1.587]
[1748533710795,36.62341992,169.87,169.85,21.25540433]
[1748533711805,42.51033218,169.87,169.85,21.25540433]
[1748533712813,36.62341992,169.87,169.85,21.25540433]
[1748533714311,5.88546877,169.91,169.86,21.25540433]
[1748533714507,37.34,169.88,169.87,21.25540433]
[1748533714693,37.32,169.89,169.87,21.25540433]
[1748533714888,5.88546877,169.91,169.87,21.25540433]
[1748533715087,37.32,169.9,169.87,21.25540433]
[1748533715306,5.88546877,169.91,169.88,21.25540433]
[1748533715505,37.32,169.9,169.89,21.25540433]
[1748533715705,37.32,169.9,169.88,21.25540433]
[1748533716024,37.3,169.9,169.88,21.25540433]
[1748533716529,37.3,169.9,169.87,21.25540433]
[1748533716699,37.3,169.9,169.88,21.25540433]
[1748533717022,37.3,169.9,169.89,21.25540433]
[1748533717218,43.18585221,169.9,169.88,21.25540433]
[1748533717700,5.88561122,169.91,169.89,21.25540433]
[1748533717893,37.28,169.9,169.89,21.25540433]
[1748533718090,5.88561122,169.91,169.89,21.25540433]
[1748533718305,43.14561122,169.91,169.89,21.25540433]
[1748533718912,43.14561122,169.91,169.83,6.366]
[1748533719224,43.14561122,169.91,169.82,1.587]
[1748533719225,21.25540433,169.89,169.82,1.587]
[1748533719410,21.25540433,169.89,169.79,6.2466]
[1748533719411,21.25540433,169.87,169.79,6.2466]
[1748533719593,37.3,169.86,169.82,21.25540433]
[1748533719793,37.3,169.86,169.83,21.25540433]
[1748533720218,37.3,169.86,169.84,21.25540433]
[1748533720795,37.3,169.86,169.79,6.2466]
[1748533721105,43.18733598,169.86,169.83,21.25540433]
[1748533721723,43.18733598,169.86,169.82,21.25540433]
[1748533722706,43.18733598,169.86,169.83,21.25540433]
[1748533723410,37.3,169.86,169.83,21.25540433]
[1748533723609,37.3,169.86,169.84,21.25540433]
[1748533724423,43.18720952,169.86,169.83,21.25540433]
[1748533724827,43.18720952,169.86,169.82,21.25540433]
[1748533725425,43.18720952,169.86,169.83,21.25540433]
[1748533726596,40.71568834,169.89,169.85,21.25540433]
[1748533726597,26.0,169.89,169.85,21.25540433]
[1748533726799,43.16661936,169.88,169.86,21.25540433]
[1748533727430,5.88661936,169.88,169.86,21.25540433]
[1748533727634,69.16661936,169.88,169.86,21.25540433]
[1748533728805,69.16661936,169.88,169.85,21.25540433]
[1748533729224,69.16661936,169.88,169.79,5.88954388]
[1748533729530,90.42202369,169.88,169.83,21.25540433]
[1748533729706,90.42202369,169.88,169.84,21.25540433]
[1748533729906,69.16661936,169.88,169.84,21.25540433]
[1748533731240,21.25540433,169.87,169.82,21.25540433]
[1748533731536,83.88288966,169.88,169.78,11.7373]
[1748533731537,105.13829399,169.88,169.83,21.25540433]
[1748533732612,21.25540433,169.87,169.82,21.25540433]
[1748533732920,115.25829399,169.88,169.83,21.25540433]
[1748533733424,100.54202369,169.88,169.83,21.25540433]
[1748533733611,100.54202369,169.88,169.84,21.25540433]
[1748533733612,79.28661936,169.88,169.84,21.25540433]